Cogmind - Beta 13 @@@ ROGUE MODE // 2024.04.07 @ 00:08:25 Player: lazy_engineer Result: Self-destructed Performance ------------- Evolutions (2) 1000 Regions Visited (4) 800 Robots Destroyed (31) 155 Value Destroyed (659) 659 Prototype IDs (3) 60 Alien Tech Used (0) 0 Bonus (344) 344 TOTAL SCORE: 3018 Bonus ------- Follower Combat Kills 344 Cogmind --------- Core Integrity 322/550 Matter 295/300 Energy 280/280 System Corruption 0% Temperature Cool (27) Movement Flying (315) Ox4 Location -8/Storage Parts ------- > --- POWER (1) -------- Cooled Ion Engine > --- PROPULSION (4) --- Improved VTOL Module > --- UTILITY (4) ------ Medium Storage Unit Advanced Visual Processing Unit > --- WEAPON (2) ------- Shock Maul > --- INVENTORY (10) --- Light Deuterium Engine Trap Scanner Improved Terrain Scan Processor Improved Propulsion Shielding Field Recycling Unit (63) Drone Bay (2/2) Grenade Launcher Datajack Plasma Cutter Heavy Flail Peak State ------------ > --- POWER ------------ Cooled Ion Engine > --- PROPULSION ------- Flight Unit Cesium-ion Thruster Improved VTOL Module > --- UTILITY ---------- Medium Storage Unit Advanced Weight Redist. System Advanced Visual Processing Unit Improved Sensor Array > --- WEAPON ----------- Shock Maul > --- INVENTORY -------- Light Deuterium Engine Trap Scanner Improved Terrain Scan Processor Improved Propulsion Shielding Field Recycling Unit Drone Bay Subdweller Machine Gun Grenade Launcher Datajack Heavy Flail [Rating: 29] Favorites ----------- Power Ion Engine Engine Ion Engine Propulsion Flight Unit Treads Light Treads Flight Unit Flight Unit Utility Medium Storage Unit Device Advanced Weight Redist. System Storage Medium Storage Unit Processor Advanced Visual Processing Unit Protection Improved Propulsion Shielding Weapon Light Assault Rifle Ballistic Gun Light Assault Rifle Special Weapon Plasma Cutter Impact Weapon Heavy Flail Build | -11 -10 -10 -8 -8 ------- Run | Yrd Mat Sub Mat Sto Slots Evolved 4 | . . . 4 . Power . | . . . . . Propulsion 2 | . . . 2 . Utility 2 | . . . 2 . Weapon . | . . . . . Parts Attached 50 | 7 8 3 19 13 Power 4 | 1 . . 2 1 Engine 4 | 1 . . 2 1 Core . | . . . . . Reactor . | . . . . . Propulsion 10 | 2 2 . 5 1 Treads 4 | 2 2 . . . Leg . | . . . . . Wheel . | . . . . . Hover . | . . . . . Flight 6 | . . . 5 1 Utility 20 | 2 5 . 5 8 Device 12 | . 2 . 4 6 Storage 5 | 2 3 . . . Processor 1 | . . . . 1 Hackware . | . . . . . Protection 2 | . . . 1 1 Artifact . | . . . . . Weapon 16 | 2 1 3 7 3 Energy Gun . | . . . . . Energy Cannon . | . . . . . Ballistic Gun 4 | 2 . 2 . . Ballistic Cannon . | . . . . . Launcher . | . . . . . Special Weapon 1 | . . . . 1 Impact Weapon 11 | . 1 1 7 2 Slashing Weapon . | . . . . . Piercing Weapon . | . . . . . Special Melee Weapon . | . . . . . Unidentified Prototypes 3 | . . . . 3 Parts Lost 7 | . . 1 1 5 Power . | . . . . . Propulsion 3 | . . . . 3 Utility 3 | . . . 1 2 Weapon 1 | . . 1 . . Highest Loss Streak 4 | . . 1 1 4 To Critical Strikes . | . . . . . Average Slot Usage (%) 92 | . 99 100 73 86 Engine 11 | . 14 14 9 9 Treads 14 | . 28 28 . . Flight 16 | . . . 35 34 Device 9 | . 1 . 10 18 Storage 18 | . 26 28 9 9 Protection 3 | . . . 6 6 Ballistic Gun 10 | . 23 15 . . Impact Weapon 7 | . 4 12 1 8 Naked Turns . | . . . . . Heaviest Build 27 | 17 25 27 20 25 Greatest Support 40 | 40 40 40 26 27 Greatest Overweight (x) 2 | . . . 1 2 Average Overweight (x) . | . . . . . Largest Inventory Capacity 10 | 8 10 10 10 10 Average Capacity 9 | 7 9 10 10 10 Most Carried 10 | 5 10 10 10 10 Average Carried 7 | 1 6 8 8 8 Final Capacity 10 | 8 10 10 10 10 Final Carried 10 | 1 9 9 10 10 Class Distribution -------------------- 53% | Mutant 42% | Sprinter Dominant Class ---------------- Mutant | -10/Materials Mutant | -10/Subcaves Sprinter | -8/Materials Sprinter | -8/Storage Resources | -11 -10 -10 -8 -8 ----------- Run | Yrd Mat Sub Mat Sto Matter Collected 735 | 276 144 15 . 300 Remotely . | . . . . . Salvage Created 925 | 95 374 126 . 330 Parts 44 | 3 22 9 . 10 Haulers Intercepted 1 | . . . . 1 Recyclers Shooed 1 | . 1 . . . Parts Field Recycled 24 | . 24 . . . Retrieved Matter 79 | . 79 . . . Parts Self-Destructed 8 | . . 8 . . Prevented . | . . . . . Kills | -11 -10 -10 -8 -8 ------- Run | Yrd Mat Sub Mat Sto Combat Hostiles Destroyed 22 | . 13 3 . 6 Melee 4 | . . 3 . 1 Guns 13 | . 13 . . . Classes Destroyed 9 | 1 4 1 . 3 Worker 3 | . 1 . . 2 Hauler 1 | . . . . 1 Recycler 1 | 1 . . . . Operator 1 | . . . . 1 Watcher 3 | . 3 . . . Swarmer 11 | . 9 . . 2 Grunt 9 | . 4 2 . 3 Sentry 1 | . . . . 1 Subdweller 1 | . . 1 . . Best Kill Streak 6 | 1 6 2 . 3 Combat Bots Only 6 | . 6 2 . 3 Max Kills in Single Turn 1 | 1 1 1 . 1 Gunslinging . | . . . . . Exploded . | . . . . . Melee 1 | . . 1 . 1 Uniques/NPCs Destroyed . | . . . . . Combat | -11 -10 -10 -8 -8 -------- Run | Yrd Mat Sub Mat Sto Hostile Shots Fired 145 | . 55 25 25 40 Missed 38 | . 12 4 14 8 Damage Taken 1476 | . 369 450 175 482 Core 428 | . 74 126 63 165 Absorbed by Shields 22 | . . . . 22 Redirected to Shielding 38 | . . . 38 . Core Remaining (%) 60 | 100 . 20 . . Volleys Fired 43 | 3 40 . . . Largest 2 | 2 2 . . . Hottest 40 | 40 40 . . . Shots Fired 86 | 6 80 . . . Gun 86 | 6 80 . . . Cannon . | . . . . . Launcher . | . . . . . Special . | . . . . . Kinetic 86 | 6 80 . . . Thermal . | . . . . . Explosive . | . . . . . Electromagnetic . | . . . . . Robot Hit Streak 17 | 2 17 . . . Robot Miss Streak 4 | 1 4 . . . Penetration Max . | . . . . . Secondary Targets 1 | . 1 . . . Max Gunslinging Chain 1 | . 1 . . . Shots Hit Robots 84 | 3 55 11 1 14 Core Hits 30 | 3 23 3 . 1 Critical Kills . | . . . . . Critical Parts Destroyed 7 | . . 2 . 5 Critical Strikes 7 | . . 2 . 5 Smash 7 | . . 2 . 5 Melee Attacks 54 | . 11 15 8 20 Impact 54 | . 11 15 8 20 Slashing . | . . . . . Piercing . | . . . . . Sneak Attacks 10 | . 2 . 1 7 Combat Hostiles 1 | . . . . 1 Follow-up Attacks . | . . . . . Damage Inflicted 2279 | 20 738 454 52 1015 Guns 421 | 20 401 . . . Cannons . | . . . . . Explosions . | . . . . . Melee 1858 | . 337 454 52 1015 Ramming . | . . . . . Kinetic 421 | 20 401 . . . Thermal . | . . . . . Explosive . | . . . . . Electromagnetic . | . . . . . Impact 1858 | . 337 454 52 1015 Slashing . | . . . . . Piercing . | . . . . . Highest Corruption . | . . . . . Average Corruption . | . . . . . Corruption Purged . | . . . . . Corruption Blocked . | . . . . . Overload Shots . | . . . . . Overflow Damage 647 | . 158 93 . 396 Projectiles . | . . . . . Explosions . | . . . . . Melee 647 | . 158 93 . 396 Knockbacks 8 | . 4 1 . 3 Impact 8 | . 4 1 . 3 Kinetic . | . . . . . Secondary . | . . . . . Self-Inflicted Damage . | . . . . . Shots . | . . . . . Rammed . | . . . . . Targets Rammed . | . . . . . Kicked . | . . . . . Crushed . | . . . . . Highest Temperature 12 | . 12 . 12 2 Average Temperature 5 | . 6 . 4 1 Received Heat Transfer 429 | . 60 69 99 201 Siege Activations . | . . . . . Robots Corrupted . | . . . . . Combat Hostiles . | . . . . . Parts Fried 11 | . 4 . . 7 Impact Corruptions 22 | . 7 2 . 13 Robots Melted . | . . . . . Combat Hostiles . | . . . . . Parts Melted . | . . . . . Heat Transferred . | . . . . . Parts Sabotaged . | . . . . . Parts Stolen . | . . . . . Parts Stripped . | . . . . . Power Chain Reactions . | . . . . . Alert | -11 -10 -10 -8 -8 ------- Run | Yrd Mat Sub Mat Sto Peak Influence 338 | 5 300 . 327 338 Initial 137 | . 3 . . 137 Average 83 | 2 127 . 85 50 Maximum Alert Level 1 | . 1 . 1 1 Low Security (%) 82 | 100 73 . 84 89 Level 1 17 | . 26 . 15 10 Level 2 . | . . . . . Level 3 . | . . . . . Level 4 . | . . . . . Level 5 . | . . . . . High Security . | . . . . . Max Security . | . . . . . Squads Dispatched 10 | . 2 . 3 5 Investigation 3 | . 1 . 1 1 Extermination . | . . . . . Reinforcement 5 | . 1 . 2 2 Assault . | . . . . . Garrison 2 | . . . . 2 Intercept . | . . . . . Searches Triggered . | . . . . . Construction Impeded . | . . . . . Haulers Reinforced . | . . . . . Active Scanning Responses . | . . . . . Cargo Convoy Interrupts . | . . . . . Stealth | -11 -10 -10 -8 -8 --------- Run | Yrd Mat Sub Mat Sto Distress Signals 6 | . 2 . 2 2 Communications Jammed . | . . . . . Distress Signals . | . . . . . Times Spotted 85 | . 24 6 22 33 Peak Tracking Total 17 | . 7 2 11 17 Tactical Retreats 9 | . 2 2 4 1 Traps | -11 -10 -10 -8 -8 ------- Run | Yrd Mat Sub Mat Sto Traps Triggered 5 | . 1 1 . 3 Indirectly . | . . . . . Trap Hack Attempts . | . . . . . Triggered . | . . . . . Disarmed . | . . . . . Reprogrammed . | . . . . . Reused . | . . . . . Traps Extracted . | . . . . . Installed . | . . . . . Triggered . | . . . . . Machines | -11 -10 -10 -8 -8 ---------- Run | Yrd Mat Sub Mat Sto Machines Disabled 2 | . . . . 2 Max in Single Turn 1 | . . . . 1 Machines Repaired . | . . . . . Machines Dismantled . | . . . . . Machines Sabotaged . | . . . . . Overloaded Fab Kills . | . . . . . Hacking | -11 -10 -10 -8 -8 --------- Run | Yrd Mat Sub Mat Sto Machines Accessed 12 | . 4 . 4 4 Terminals 10 | . 3 . 3 4 Fabricators . | . . . . . Repair Stations 1 | . . . 1 . Recycling Units 1 | . 1 . . . Scanalyzers . | . . . . . Garrison Access . | . . . . . Total Hacks 27 | . 9 . 11 7 Successful 15 | . 7 . 3 5 Failed 12 | . 2 . 8 2 Catastrophic 1 | . . . 1 . Database Lockouts . | . . . . . Manual 14 | . 6 . 7 1 Terminals 21 | . 5 . 9 7 Fabricators . | . . . . . Repair Stations 2 | . . . 2 . Recycling Units 4 | . 4 . . . Scanalyzers . | . . . . . Garrison Access . | . . . . . Terminal Hacks 10 | . 3 . 2 5 Open Door 3 | . . . . 3 Emergency Access Points 1 | . 1 . . . Locate Traps 1 | . . . . 1 Transport Status 1 | . . . 1 . Hauler Manifests 2 | . 1 . 1 . Zone Layout 2 | . 1 . . 1 Fabricator Hacks . | . . . . . Repair Station Hacks . | . . . . . Recycling Unit Hacks 1 | . 1 . . . Report Inventory 1 | . 1 . . . Scanalyzer . | . . . . . Garrison Access Hacks . | . . . . . Unauthorized Hacks 4 | . 3 . 1 . Terminals 1 | . . . 1 . Track 1 | . . . 1 . Fabricators . | . . . . . Repair Stations . | . . . . . Recycling Units 3 | . 3 . . . Monitor 1 | . 1 . . . Reject 1 | . 1 . . . Mask 1 | . 1 . . . Scanalyzers . | . . . . . Garrison Access . | . . . . . Data Cores Recovered . | . . . . . Used . | . . . . . Hacking Detections 7 | . 2 . 3 2 Full Trace Events 1 | . . . 1 . Feedback Events . | . . . . . Feedback Blocked . | . . . . . Robot Schematics Acquired . | . . . . . Robots Built . | . . . . . Authchips . | . . . . . Time . | . . . . . Total Robot Build Rating . | . . . . . Part Schematics Acquired . | . . . . . Parts Built . | . . . . . Authchips . | . . . . . Time . | . . . . . Total Part Build Rating . | . . . . . Parts Repaired . | . . . . . Time . | . . . . . Parts Recycled . | . . . . . Recycled Matter . | . . . . . Retrieved Matter . | . . . . . Retrieved Components . | . . . . . Parts Scanalyzed . | . . . . . Part Schematics Acquired . | . . . . . Parts Damaged . | . . . . . Bothacking | -11 -10 -10 -8 -8 ------------ Run | Yrd Mat Sub Mat Sto Used RIF Installer . | . . . . . Robots Hacked . | . . . . . Non-combat . | . . . . . Combat . | . . . . . Robot Hacks Applied . | . . . . . Relay Couplers Released . | . . . . . Fabnet Peak Effective % . | . . . . . Robots Rewired . | . . . . . Allies Hacked . | . . . . . Hacks Repelled . | . . . . . Allies | -11 -10 -10 -8 -8 -------- Run | Yrd Mat Sub Mat Sto Total Allies 10 | . . . . 10 Largest Group 10 | . . . . 10 Highest-Rated Group 173 | . . . . 173 Highest-Rated Ally 29 | . . . . 29 Total Orders 32 | . . . . 32 ROAM 10 | . . . . 10 FOLLOW 4 | . . . . 4 EXPLORE 18 | . . . . 18 Ally Attacks 64 | . . . . 64 Total Damage 936 | . . . . 936 Kills 12 | . . . . 12 Allies Corrupted . | . . . . . Allies Melted . | . . . . . Intel | -11 -10 -10 -8 -8 ------- Run | Yrd Mat Sub Mat Sto Robot Analysis Total . | . . . . . Derelict Logs Recovered 1 | . . 1 . . Drone Launches 18 | . . . . 18 Drone Recoveries 5 | . . . . 5 Exploration | -11 -10 -10 -8 -8 ------------- Run | Yrd Mat Sub Mat Sto Turns Passed 3369 | 72 1138 554 249 1356 Spaces Moved 2024 | 43 604 309 605 463 Core 20 | 20 . . . . Treads 936 | 23 604 309 . . Legs . | . . . . . Wheels . | . . . . . Hover . | . . . . . Flight 1068 | . . . 605 463 Fastest Speed 28 | 50 160 160 29 28 Average Speed 91 | 108 160 160 30 33 Slowest Speed 184 | 160 160 160 109 184 Overloaded Moves . | . . . . . Propulsion Burnouts . | . . . . . Robots Hopped . | . . . . . Cave-ins Triggered . | . . . . . Exploration Rate (%) 43 | 4 58 26 45 84 Regions Visited 4 Branch Regions 2 Pre-discovered Areas . | . . . . . Known Exits Taken . | . . . . . Unknown Exits Taken 4 | 1 1 1 1 . Scrap Searched . | . . . . . Spaces Dug 10 | . . . 7 3 Terrain Destroyed 10 | . . . 7 3 Melee 10 | . . . 7 3 Projectile . | . . . . . AOE . | . . . . . Terrain Rammed . | . . . . . Walls Destroyed . | . . . . . Machines Disabled . | . . . . . Actions | -11 -10 -10 -8 -8 --------- Run | Yrd Mat Sub Mat Sto Total 3394 | 64 691 342 666 1631 Wait 1139 | 4 13 14 9 1099 Move 2020 | 42 603 308 604 463 Hop . | . . . . . Pick Up 34 | 8 12 1 8 5 Fast Attach 4 | . . . 1 3 Attach 30 | 7 1 2 16 4 Detach 16 | . . 1 11 4 Swap 16 | . 7 1 2 6 Drop 17 | . 4 . 7 6 Fire 43 | 3 40 . . . Melee 54 | . 11 15 8 20 Ram . | . . . . . Kick . | . . . . . Crush . | . . . . . Escape Stasis 15 | . . . . 15 Rewire . | . . . . . Trap . | . . . . . Miscellaneous 6 | . . . . 6 Route ------- -11/Scrapyard -10/Materials (discovered 5 exits: [*Mat x2] / [*Min x2] / [*Sub]) -10/Subcaves -8/Materials (discovered 2 exits: [*Fac] / *Sto) -8/Storage (discovered 1 exit: [*Fac]) History --------- Turn | Location | Event 10 | -11/Scrapyard | Discovered new exit (range 14) 73 | -11/Scrapyard | Entered Materials 193 | -10/Materials | Discovered new exit (range 14) 300 | -10/Materials | Build established: Mutant 300 | -10/Materials | Discovered new exit (range 3) 844 | -10/Materials | Discovered new exit (range 14) 1063 | -10/Materials | Discovered new exit (range 15) 1073 | -10/Materials | Discovered new exit (range 5) 1211 | -10/Materials | Entered Subcaves 1347 | -10/Subcaves | A swath of the cavern ceiling suddenly collapsed 1506 | -10/Subcaves | Core integrity fell below 50% 1600 | -10/Subcaves | Learned Materials stockpile data 1694 | -10/Subcaves | Discovered new exit (range 14) 1765 | -10/Subcaves | Entered Materials 1765 | -8/Materials | Evolved 4 slots: Propulsion x2, Utility x2 1883 | -8/Materials | Discovered new exit (range 14) 2012 | -8/Materials | Discovered new exit (range 8) 2014 | -8/Materials | Entered Storage 2145 | -8/Storage | Build established: Sprinter 3197 | -8/Storage | Assisted by bots powering up and referring to "LRC-V3" 3247 | -8/Storage | Garrison activated, responded to threat 3303 | -8/Storage | Lost 7 allies 3339 | -8/Storage | Discovered new exit (range 19) 3370 | -8/Storage | Self-destructed Last Messages --------------- 03353_ Y-45 Defender system corrupted by crushing effect. 03354_ Y-45 Defender system terminally corrupted. 03354_ Imp. Ion Engine fried. 03355_ R-06 Scavenger inserts Particle Gun into recycling unit. 03356_ Recycling unit begins recycling process. 03358_ K-01 Serf collects debris. 03358_ R-06 Scavenger collects Corrupted Hvy. Assault Rifle. 03358_ R-06 Scavenger inserts Lgt. Nuclear Core into recycling unit. 03358_ Acquired Plasma Cutter. 03360_ K-01 Serf collects debris. 03361_ R-06 Scavenger inserts Imp. Heat Sink into recycling unit. 03361_ K-01 Serf collects debris. 03362_ Recycling unit begins recycling process. 03364_ K-01 Serf collects debris. 03367_ Dropped Sub. Machine Gun. 03368_ K-01 Serf collects debris. 03368_ R-06 Scavenger inserts Lgt. Ion Engine into recycling unit. 03369_ R-06 Scavenger collects Sub. Machine Gun. 03370_ Flight Unit destroyed. 03370_ Critical hit (Burn: +37). Map ----- +----------------------------------------------------+ | | | | | | | | | | | | | | | | | | | | | | | | | | | | | | | | | | | | | | | | | | | | | | | | | ????????????????????##############??????????????? | | ????????????????????# @ k #??????????????? | | ????????????????????# """grY |[ #??????????????? | | ????????????????????# "Y" g k|[ #??????????????? | | ????????????????????# rrg g ##?????????????? | | ????????????????????# r Y #?????#####???? | | ?????????????#+############Y########### #???# | | ????????# ##### | | ????????# < | | ????????# ###?? | | ????????######+################### #### #???? | | ?????????# ??????????????# #?????+###???? | | ?????????? ] ??????????????# #????????????? | | ??????????? ??????????????# # + | | ???????????? !! #?????######### # # | | ????????????? !! ?????# # "T" # | | ??????????????!! #?????# # """ ## | | ??????????????? #?????# #######T# #### | | ???????????????? #?????# #?????######## | | ???????###########/####### #???????# | | ???????# / """ #???????# | | ???????# !!! """ # """ #???????# ### | | ?????????????????# """ #???????# ### | | ?????????????????# #???????# ##" | | ?????????????????# ######## #??????## ##" | | ??????????????#### # # [!! #??????## ##" | +----------------------------------------------------+ Best States ------------- Heat Dissipation 31 Energy Generation 14 Energy Capacity 280 Matter Stores 300 Matter Capacity 300 Sight Range 20 Robot Scan Range 15 Terrain Scan Density 10 Additional Mass Support 9 Propulsion Shielding 66 Evasion (%) 72 Recoil Reduction 2 Item Schematics ----------------- None Robot Schematics ------------------ None Fabricated ------------ Nothing Alien Tech Used ----------------- None Achievements -------------- None Challenges ------------ None Game ------ Seed TripodPiercingFacilitator Manual? 0 Play Time 00:41:49 Cumulative 28.6 hours Start 2024.04.06 @ 20:56:52 End 2024.04.07 @ 00:08:25 Sessions 2 Manual Loads 0 Difficulty Rogue Special Mode None Game No. 53 Rogue 53 Adventurer 0 Explorer 0 Win Type - Total 0 Types 0/0/0/0/0/0/0/0/0 Lore% 22 Gallery% 25 Achievement% 22 Wizard Run 0 Options --------- Layout 0 ASCII 0 Keyboard 0 Movement Mouse Keybinds 0 Fullscreen 1 Font 24/Smallcaps Map View 76x50 Zoom Use 0% Tactical HUD 1 Map Filters NONE Filters NONE Steam 1 RUN: 75f47355-e668-4b71-a99f-5cfa6c17adb6